[Event "*** Titled Tuesday Blitz"]
[Site "Chess.com"]
[Date "2020.12.29"]
[Round "1"]
[White "Savva09022009"]
[Black "ViktoriyaTarasova"]
[Result "1-0"]
[WhiteElo "2638"]
[BlackElo "2334"]
[TimeControl "180+1"]
[EndTime "10:04:36 PST"]
[Termination "Savva09022009 won by resignation"]

1. d4 {[%clk 0:03:00.9]} 1... Nf6 {[%clk 0:02:59.4]} 2. Nc3 {[%clk 0:03:01]}
2... d5 {[%clk 0:02:58.7]} 3. Bf4 {[%clk 0:03:01.3]} 3... Bf5 {[%clk 0:02:57.9]}
4. e3 {[%clk 0:03:00.8]} 4... c6 {[%clk 0:02:57.5]} 5. f3 {[%clk 0:03:00.6]}
5... e6 {[%clk 0:02:56.8]} 6. g4 {[%clk 0:03:00.4]} 6... Bg6 {[%clk 0:02:56.5]}
7. h4 {[%clk 0:02:58.7]} 7... h6 {[%clk 0:02:56.3]} 8. Bd3 {[%clk 0:02:58.3]}
8... Bxd3 {[%clk 0:02:55.3]} 9. Qxd3 {[%clk 0:02:59.2]} 9... Bd6 {[%clk
0:02:55.6]} 10. Nge2 {[%clk 0:02:58.4]} 10... b5 {[%clk 0:02:47.4]} 11. O-O-O
{[%clk 0:02:57.6]} 11... b4 {[%clk 0:02:30.9]} 12. Na4 {[%clk 0:02:55]} 12...
Bxf4 {[%clk 0:02:15.1]} 13. Nxf4 {[%clk 0:02:54]} 13... Nbd7 {[%clk 0:02:11.1]}
14. g5 {[%clk 0:02:53.6]} 14... Ng8 {[%clk 0:02:00]} 15. g6 {[%clk 0:02:52.1]}
15... Ne7 {[%clk 0:01:53.9]} 16. gxf7+ {[%clk 0:02:52]} 16... Kxf7 {[%clk
0:01:54.1]} 17. Rhg1 {[%clk 0:02:51.6]} 17... Qa5 {[%clk 0:01:08.8]} 18. b3
{[%clk 0:02:46]} 18... Qb5 {[%clk 0:01:08.3]} 19. Qd2 {[%clk 0:02:37.8]} 19...
c5 {[%clk 0:00:56.9]} 20. dxc5 {[%clk 0:02:30.3]} 20... Rhg8 {[%clk 0:00:44.7]}
21. e4 {[%clk 0:02:21.1]} 21... Nxc5 {[%clk 0:00:41.9]} 22. exd5 {[%clk
0:02:19.6]} 22... exd5 {[%clk 0:00:30.3]} 23. Nxd5 {[%clk 0:02:19.6]} 23... Nxa4
{[%clk 0:00:24.3]} 24. Qf4+ {[%clk 0:02:13.3]} 1-0

[Event "*** Titled Tuesday Blitz"]
[Site "Chess.com"]
[Date "2020.12.29"]
[Round "1"]
[White "HaryKane"]
[Black "Nara_Kh"]
[Result "1-0"]
[WhiteElo "2678"]
[BlackElo "2352"]
[TimeControl "180+1"]
[EndTime "10:04:38 PST"]
[Termination "HaryKane won by checkmate"]

1. e4 {[%clk 0:03:00.9]} 1... c5 {[%clk 0:02:59]} 2. Nf3 {[%clk 0:03:00.5]} 2...
d6 {[%clk 0:02:58.8]} 3. d4 {[%clk 0:03:01.1]} 3... Nf6 {[%clk 0:02:57.6]} 4.
Nc3 {[%clk 0:03:01]} 4... cxd4 {[%clk 0:02:54.9]} 5. Nxd4 {[%clk 0:03:01.9]}
5... a6 {[%clk 0:02:54.9]} 6. Bc4 {[%clk 0:03:01.3]} 6... e6 {[%clk 0:02:54.6]}
7. Bb3 {[%clk 0:03:01.2]} 7... b5 {[%clk 0:02:54.4]} 8. Qf3 {[%clk 0:02:56.9]}
8... Bb7 {[%clk 0:02:53.4]} 9. Bg5 {[%clk 0:02:53.6]} 9... Nbd7 {[%clk 0:02:47]}
10. O-O-O {[%clk 0:02:52.4]} 10... Qc7 {[%clk 0:02:44.8]} 11. Rhe1 {[%clk
0:02:48.1]} 11... h6 {[%clk 0:02:37.7]} 12. Bh4 {[%clk 0:02:44.9]} 12... Ne5
{[%clk 0:02:29.1]} 13. Qe2 {[%clk 0:02:25.9]} 13... g5 {[%clk 0:02:07.2]} 14.
Bg3 {[%clk 0:02:26]} 14... Be7 {[%clk 0:02:07.6]} 15. h4 {[%clk 0:02:05.5]}
15... gxh4 {[%clk 0:01:40.2]} 16. Bxh4 {[%clk 0:02:06.4]} 16... Nxe4 {[%clk
0:01:40.3]} 17. Nxe4 {[%clk 0:01:57.1]} 17... Bxh4 {[%clk 0:01:39.5]} 18. Nxb5
{[%clk 0:01:48]} 18... axb5 {[%clk 0:01:32.5]} 19. Nxd6+ {[%clk 0:01:47.6]}
19... Ke7 {[%clk 0:01:25.6]} 20. Qxe5 {[%clk 0:01:45.2]} 20... Rhc8 {[%clk
0:00:45.2]} 21. Nf5+ {[%clk 0:01:40.5]} 21... Ke8 {[%clk 0:00:40.3]} 22. Qh8#
{[%clk 0:01:39.2]} 1-0

[Event "*** Titled Tuesday Blitz"]
[Site "Chess.com"]
[Date "2020.12.29"]
[Round "1"]
[White "drragnar1"]
[Black "kuban1991"]
[Result "1-0"]
[WhiteElo "2426"]
[BlackElo "2765"]
[TimeControl "180+1"]
[EndTime "10:04:41 PST"]
[Termination "drragnar1 won by checkmate"]

1. g3 {[%clk 0:02:59.5]} 1... d5 {[%clk 0:02:56.1]} 2. Bg2 {[%clk 0:02:59.7]}
2... Nc6 {[%clk 0:02:56.7]} 3. Nf3 {[%clk 0:02:59.9]} 3... e5 {[%clk 0:02:56.4]}
4. O-O {[%clk 0:02:59.1]} 4... Bg4 {[%clk 0:02:56.1]} 5. d3 {[%clk 0:02:56.1]}
5... Qd7 {[%clk 0:02:55.7]} 6. c4 {[%clk 0:02:55.1]} 6... dxc4 {[%clk
0:02:53.7]} 7. dxc4 {[%clk 0:02:55.7]} 7... Nf6 {[%clk 0:02:50.1]} 8. Nc3 {[%clk
0:02:51.9]} 8... O-O-O {[%clk 0:02:49.1]} 9. Qa4 {[%clk 0:02:40]} 9... Bc5
{[%clk 0:02:24.5]} 10. Bg5 {[%clk 0:02:35.1]} 10... Nd4 {[%clk 0:02:21.5]} 11.
Qxd7+ {[%clk 0:02:33.9]} 11... Rxd7 {[%clk 0:02:22.4]} 12. Nxe5 {[%clk
0:02:30.2]} 12... Nxe2+ {[%clk 0:02:06.9]} 13. Nxe2 {[%clk 0:02:16.8]} 13...
Bxe2 {[%clk 0:02:07.8]} 14. Rfe1 {[%clk 0:02:16.6]} 14... Bh5 {[%clk 0:01:14.2]}
15. Bh3 {[%clk 0:02:03.3]} 15... Rd8 {[%clk 0:00:21.1]} 16. Bxf6 {[%clk
0:01:54]} 16... gxf6 {[%clk 0:00:22]} 17. Nxd7 {[%clk 0:01:51]} 17... Rxd7
{[%clk 0:00:21.5]} 18. Re8# {[%clk 0:01:49.8]} 1-0

[Event "*** Titled Tuesday Blitz"]
[Site "Chess.com"]
[Date "2020.12.29"]
[Round "1"]
[White "Ariadna_Atreides"]
[Black "JozefKneht"]
[Result "0-1"]
[WhiteElo "2083"]
[BlackElo "2499"]
[TimeControl "180+1"]
[EndTime "10:04:53 PST"]
[Termination "JozefKneht won by resignation"]

1. Nf3 {[%clk 0:02:59.8]} 1... Nf6 {[%clk 0:02:59]} 2. d4 {[%clk 0:02:58.6]}
2... g6 {[%clk 0:02:59.3]} 3. c3 {[%clk 0:02:57.9]} 3... Bg7 {[%clk 0:02:59.1]}
4. Bg5 {[%clk 0:02:56.7]} 4... O-O {[%clk 0:03:00]} 5. Nbd2 {[%clk 0:02:54]}
5... d6 {[%clk 0:03:00.5]} 6. e4 {[%clk 0:02:52.5]} 6... Nbd7 {[%clk 0:03:00.2]}
7. Bd3 {[%clk 0:02:48.8]} 7... e5 {[%clk 0:02:59.7]} 8. Qc2 {[%clk 0:02:31.6]}
8... h6 {[%clk 0:02:58.5]} 9. Bh4 {[%clk 0:02:25.3]} 9... Qe8 {[%clk 0:02:56.9]}
10. O-O {[%clk 0:02:22.2]} 10... Nh5 {[%clk 0:02:52.6]} 11. dxe5 {[%clk
0:02:16.8]} 11... dxe5 {[%clk 0:02:47.5]} 12. Bc4 {[%clk 0:02:03]} 12... a5
{[%clk 0:02:37.8]} 13. a4 {[%clk 0:02:01.1]} 13... Nc5 {[%clk 0:02:36.7]} 14.
Nb3 {[%clk 0:01:58.1]} 14... Ne6 {[%clk 0:02:33.1]} 15. Rfd1 {[%clk 0:01:31.7]}
15... Nhf4 {[%clk 0:02:30.5]} 16. Bg3 {[%clk 0:01:22.4]} 16... Bd7 {[%clk
0:02:27]} 17. Bxf4 {[%clk 0:01:09.1]} 17... Nxf4 {[%clk 0:02:26.3]} 18. Nc5
{[%clk 0:01:08.7]} 18... Bc8 {[%clk 0:02:15]} 19. Qb3 {[%clk 0:01:06.9]} 19...
Qe7 {[%clk 0:02:11.4]} 20. Nd3 {[%clk 0:01:00.8]} 20... Nh5 {[%clk 0:01:55.4]}
21. Rd2 {[%clk 0:00:39.3]} 21... Bg4 {[%clk 0:01:50.3]} 22. Nde1 {[%clk
0:00:38.1]} 22... Rab8 {[%clk 0:01:45.6]} 23. Rad1 {[%clk 0:00:36.8]} 23... Nf4
{[%clk 0:01:44.3]} 24. Rd7 {[%clk 0:00:33.4]} 24... Bxd7 {[%clk 0:01:41.4]} 0-1

[Event "*** Titled Tuesday Blitz"]
[Site "Chess.com"]
[Date "2020.12.29"]
[Round "1"]
[White "Firegrizzly"]
[Black "Spriteball"]
[Result "1-0"]
[WhiteElo "2610"]
[BlackElo "2313"]
[TimeControl "180+1"]
[EndTime "10:04:56 PST"]
[Termination "Firegrizzly won by resignation"]

1. d4 {[%clk 0:03:00.9]} 1... Nf6 {[%clk 0:02:57.6]} 2. Nf3 {[%clk 0:03:00.6]}
2... d5 {[%clk 0:02:57.7]} 3. Bf4 {[%clk 0:03:00.3]} 3... c5 {[%clk 0:02:55.6]}
4. dxc5 {[%clk 0:03:00]} 4... e6 {[%clk 0:02:54.2]} 5. e3 {[%clk 0:02:55.3]}
5... Bxc5 {[%clk 0:02:52.9]} 6. Nbd2 {[%clk 0:02:55.4]} 6... O-O {[%clk
0:02:52.5]} 7. Bd3 {[%clk 0:02:55.3]} 7... Nc6 {[%clk 0:02:51.8]} 8. O-O {[%clk
0:02:54.3]} 8... Bd6 {[%clk 0:02:44.8]} 9. Bg5 {[%clk 0:02:52.9]} 9... h6 {[%clk
0:02:44.1]} 10. Bh4 {[%clk 0:02:51.8]} 10... b6 {[%clk 0:02:36.5]} 11. e4 {[%clk
0:02:51.4]} 11... dxe4 {[%clk 0:02:35.5]} 12. Nxe4 {[%clk 0:02:50.6]} 12... Be7
{[%clk 0:02:35.5]} 13. c3 {[%clk 0:02:35.7]} 13... Bb7 {[%clk 0:02:31.7]} 14.
Qe2 {[%clk 0:02:33]} 14... Nxe4 {[%clk 0:02:25.3]} 15. Qxe4 {[%clk 0:02:31.8]}
15... g6 {[%clk 0:02:17.5]} 16. Bg3 {[%clk 0:02:27.7]} 16... Na5 {[%clk
0:02:11.2]} 17. Qe3 {[%clk 0:02:23]} 17... Bf6 {[%clk 0:02:02.1]} 18. Rad1
{[%clk 0:02:20.2]} 18... Qc8 {[%clk 0:01:43.5]} 19. Qxh6 {[%clk 0:02:19.1]}
19... Bxf3 {[%clk 0:01:43.2]} 20. gxf3 {[%clk 0:02:17.7]} 20... Bg7 {[%clk
0:01:43.4]} 21. Qe3 {[%clk 0:02:14.5]} 21... Nc4 {[%clk 0:01:42.6]} 22. Qe2
{[%clk 0:02:14.4]} 22... b5 {[%clk 0:01:33.5]} 23. Be4 {[%clk 0:02:12.9]} 23...
a5 {[%clk 0:01:28.7]} 24. Bxa8 {[%clk 0:02:11.6]} 24... Qxa8 {[%clk 0:01:29.6]}
25. a4 {[%clk 0:02:10.5]} 25... Rc8 {[%clk 0:01:04.7]} 26. axb5 {[%clk
0:02:09.6]} 26... a4 {[%clk 0:01:04.9]} 27. Rd7 {[%clk 0:02:03.1]} 27... Qa5
{[%clk 0:01:00]} 28. Rfd1 {[%clk 0:01:54.6]} 28... Qxb5 {[%clk 0:00:48.3]} 29.
Rd8+ {[%clk 0:01:54.5]} 29... Rxd8 {[%clk 0:00:48.7]} 30. Rxd8+ {[%clk
0:01:53.9]} 30... Kh7 {[%clk 0:00:49.2]} 31. Rc8 {[%clk 0:01:53.7]} 31... Na3
{[%clk 0:00:40.7]} 32. Qxb5 {[%clk 0:01:52.6]} 32... Nxb5 {[%clk 0:00:41.6]} 33.
Rb8 {[%clk 0:01:50.9]} 1-0

[Event "*** Titled Tuesday Blitz"]
[Site "Chess.com"]
[Date "2020.12.29"]
[Round "1"]
[White "HeadShotRomanTest"]
[Black "lelajavakhishvili"]
[Result "0-1"]
[WhiteElo "2168"]
[BlackElo "2518"]
[TimeControl "180+1"]
[EndTime "10:04:57 PST"]
[Termination "lelajavakhishvili won by resignation"]

1. e4 {[%clk 0:03:00.5]} 1... c5 {[%clk 0:02:58.8]} 2. Nf3 {[%clk 0:03:00.3]}
2... e6 {[%clk 0:02:55.5]} 3. d4 {[%clk 0:03:00.7]} 3... cxd4 {[%clk 0:02:55.7]}
4. Nxd4 {[%clk 0:03:01.6]} 4... Nc6 {[%clk 0:02:56]} 5. Nb5 {[%clk 0:02:59.8]}
5... d6 {[%clk 0:02:53.5]} 6. c4 {[%clk 0:02:52.6]} 6... Nf6 {[%clk 0:02:52.3]}
7. N5c3 {[%clk 0:02:51.2]} 7... Be7 {[%clk 0:02:51.3]} 8. Be3 {[%clk 0:02:51]}
8... O-O {[%clk 0:02:51.1]} 9. Nd2 {[%clk 0:02:45.5]} 9... b6 {[%clk 0:02:50.9]}
10. f3 {[%clk 0:02:45.2]} 10... Bb7 {[%clk 0:02:50.9]} 11. Be2 {[%clk
0:02:43.3]} 11... a6 {[%clk 0:02:50.7]} 12. O-O {[%clk 0:02:43]} 12... Nd7
{[%clk 0:02:50]} 13. Rc1 {[%clk 0:02:41]} 13... Rc8 {[%clk 0:02:47.5]} 14. a3
{[%clk 0:02:37.5]} 14... Re8 {[%clk 0:02:39.9]} 15. b4 {[%clk 0:02:35.8]} 15...
Bf8 {[%clk 0:02:40.1]} 16. Qb3 {[%clk 0:02:35.6]} 16... Qc7 {[%clk 0:02:35.9]}
17. Rfd1 {[%clk 0:02:35.2]} 17... Qb8 {[%clk 0:02:35.9]} 18. Nf1 {[%clk
0:02:34.7]} 18... Nce5 {[%clk 0:02:32.3]} 19. h3 {[%clk 0:02:30.1]} 19... h5
{[%clk 0:02:23.7]} 20. f4 {[%clk 0:02:27.1]} 20... Ng6 {[%clk 0:02:23.5]} 21.
Bf3 {[%clk 0:02:25.9]} 21... h4 {[%clk 0:02:19.5]} 22. Rd2 {[%clk 0:02:16.9]}
22... Nf6 {[%clk 0:02:04.4]} 23. Rdc2 {[%clk 0:01:49.5]} 23... d5 {[%clk
0:02:01.7]} 24. cxd5 {[%clk 0:01:47.4]} 24... Nxf4 {[%clk 0:01:51.2]} 25. dxe6
{[%clk 0:01:10.7]} 25... Nxe6 {[%clk 0:01:45]} 26. Nd5 {[%clk 0:01:07.5]} 26...
Rxc2 {[%clk 0:01:37.6]} 27. Nxf6+ {[%clk 0:01:05.6]} 27... gxf6 {[%clk
0:01:37.2]} 28. Rxc2 {[%clk 0:01:05.8]} 28... Ng5 {[%clk 0:01:34.5]} 29. Bxb6
{[%clk 0:00:57.6]} 29... Bxe4 {[%clk 0:01:28.7]} 30. Bxe4 {[%clk 0:00:57.1]}
30... Qxb6+ {[%clk 0:01:28.4]} 0-1

[Event "*** Titled Tuesday Blitz"]
[Site "Chess.com"]
[Date "2020.12.29"]
[Round "1"]
[White "szefru"]
[Black "Ajedrez_con_German"]
[Result "0-1"]
[WhiteElo "2214"]
[BlackElo "2540"]
[TimeControl "180+1"]
[EndTime "10:04:58 PST"]
[Termination "Ajedrez_con_German won by resignation"]

1. c4 {[%clk 0:03:00.3]} 1... c6 {[%clk 0:02:56.5]} 2. Nf3 {[%clk 0:03:00.1]}
2... d5 {[%clk 0:02:46.1]} 3. b3 {[%clk 0:02:56.4]} 3... Nf6 {[%clk 0:02:40.6]}
4. Bb2 {[%clk 0:02:55.6]} 4... Bf5 {[%clk 0:02:30.6]} 5. e3 {[%clk 0:02:52.8]}
5... e6 {[%clk 0:02:27.1]} 6. d4 {[%clk 0:02:51.5]} 6... Bb4+ {[%clk 0:02:24.4]}
7. Bc3 {[%clk 0:02:48]} 7... Qa5 {[%clk 0:02:23.2]} 8. Bxb4 {[%clk 0:02:41.6]}
8... Qxb4+ {[%clk 0:02:22.8]} 9. Qd2 {[%clk 0:02:41.2]} 9... a5 {[%clk
0:02:08.5]} 10. Nc3 {[%clk 0:02:04.8]} 10... Ne4 {[%clk 0:02:04.6]} 11. Nxe4
{[%clk 0:02:01.9]} 11... Bxe4 {[%clk 0:02:03.9]} 12. Qxb4 {[%clk 0:01:32.3]}
12... axb4 {[%clk 0:02:03.4]} 13. Nd2 {[%clk 0:01:29.5]} 13... Nd7 {[%clk
0:01:57.8]} 14. Nxe4 {[%clk 0:01:27]} 14... dxe4 {[%clk 0:01:57.7]} 15. g4
{[%clk 0:01:19.2]} 15... Ke7 {[%clk 0:01:50]} 16. Bg2 {[%clk 0:01:15.3]} 16...
f5 {[%clk 0:01:50]} 17. gxf5 {[%clk 0:01:14.1]} 17... exf5 {[%clk 0:01:50]} 18.
Ke2 {[%clk 0:01:07.7]} 18... Ra3 {[%clk 0:01:48.1]} 19. Rhb1 {[%clk 0:01:05.6]}
19... Rha8 {[%clk 0:01:46.4]} 20. Rb2 {[%clk 0:01:05.1]} 20... Nf6 {[%clk
0:01:40.6]} 21. h3 {[%clk 0:00:57.9]} 21... b5 {[%clk 0:01:35.7]} 22. f3 {[%clk
0:00:54.1]} 22... bxc4 {[%clk 0:01:34.4]} 23. bxc4 {[%clk 0:00:53.6]} 23... b3
{[%clk 0:01:34.3]} 24. Rxb3 {[%clk 0:00:47.1]} 24... Rxb3 {[%clk 0:01:32.6]} 25.
axb3 {[%clk 0:00:46.3]} 25... Rxa1 {[%clk 0:01:31.5]} 0-1

[Event "*** Titled Tuesday Blitz"]
[Site "Chess.com"]
[Date "2020.12.29"]
[Round "1"]
[White "ajdemipopushi"]
[Black "azikom"]
[Result "1/2-1/2"]
[WhiteElo "2342"]
[BlackElo "2629"]
[TimeControl "180+1"]
[EndTime "10:05:01 PST"]
[Termination "Game drawn by repetition"]

1. Nf3 {[%clk 0:03:00.9]} 1... d5 {[%clk 0:02:59.3]} 2. g3 {[%clk 0:03:00.9]}
2... c6 {[%clk 0:02:58.8]} 3. c4 {[%clk 0:03:01]} 3... Nf6 {[%clk 0:02:57.9]} 4.
Bg2 {[%clk 0:03:01.1]} 4... Bg4 {[%clk 0:02:57.4]} 5. Ne5 {[%clk 0:03:00.3]}
5... Bf5 {[%clk 0:02:56.8]} 6. cxd5 {[%clk 0:03:00.3]} 6... cxd5 {[%clk
0:02:56.7]} 7. Qa4+ {[%clk 0:02:59.6]} 7... Nbd7 {[%clk 0:02:54.4]} 8. Nc3
{[%clk 0:02:58.9]} 8... e6 {[%clk 0:02:49.4]} 9. g4 {[%clk 0:02:58.7]} 9... Bc2
{[%clk 0:02:42.5]} 10. Nxf7 {[%clk 0:02:54.7]} 10... Bxa4 {[%clk 0:02:34.7]} 11.
Nxd8 {[%clk 0:02:53.8]} 11... Rxd8 {[%clk 0:02:21.1]} 12. Nxa4 {[%clk 0:02:53]}
12... Nxg4 {[%clk 0:01:58.4]} 13. Bh3 {[%clk 0:02:52.3]} 13... Ndf6 {[%clk
0:01:46.7]} 14. f3 {[%clk 0:02:48.9]} 14... Ne5 {[%clk 0:01:44.8]} 15. Bxe6
{[%clk 0:02:47.2]} 15... Bd6 {[%clk 0:01:37.8]} 16. f4 {[%clk 0:01:19.7]} 16...
Nc6 {[%clk 0:01:34.5]} 17. e3 {[%clk 0:01:15.2]} 17... Nb4 {[%clk 0:01:24.2]}
18. Ke2 {[%clk 0:01:05.6]} 18... d4 {[%clk 0:01:23.7]} 19. b3 {[%clk 0:00:56.8]}
19... b5 {[%clk 0:01:19.4]} 20. Nb2 {[%clk 0:00:55.9]} 20... Nc2 {[%clk
0:01:16.2]} 21. Rb1 {[%clk 0:00:54.4]} 21... Na3 {[%clk 0:01:15.9]} 22. Ra1
{[%clk 0:00:54.7]} 22... Nc2 {[%clk 0:01:15.8]} 23. Rb1 {[%clk 0:00:55.1]} 23...
Na3 {[%clk 0:01:13]} 24. Ra1 {[%clk 0:00:55.3]} 24... Nc2 {[%clk 0:01:12.3]}
1/2-1/2

[Event "*** Titled Tuesday Blitz"]
[Site "Chess.com"]
[Date "2020.12.29"]
[Round "1"]
[White "Jumbo"]
[Black "Chessmatus"]
[Result "1-0"]
[WhiteElo "2841"]
[BlackElo "2438"]
[TimeControl "180+1"]
[EndTime "10:05:13 PST"]
[Termination "Jumbo won by resignation"]

1. d4 {[%clk 0:03:00.9]} 1... Nf6 {[%clk 0:03:00]} 2. c4 {[%clk 0:03:01.4]} 2...
g6 {[%clk 0:03:00.5]} 3. Nc3 {[%clk 0:03:00.8]} 3... d5 {[%clk 0:03:00.7]} 4. h4
{[%clk 0:02:52.2]} 4... c5 {[%clk 0:02:58.2]} 5. cxd5 {[%clk 0:02:47]} 5... Nxd5
{[%clk 0:02:58]} 6. h5 {[%clk 0:02:46.7]} 6... Nxc3 {[%clk 0:02:38.2]} 7. bxc3
{[%clk 0:02:46.2]} 7... Bg7 {[%clk 0:02:00.4]} 8. e3 {[%clk 0:02:43.1]} 8... Nc6
{[%clk 0:01:55.3]} 9. Bc4 {[%clk 0:02:32.4]} 9... Bf5 {[%clk 0:01:45.6]} 10. Ne2
{[%clk 0:02:30.8]} 10... Rc8 {[%clk 0:01:24.7]} 11. Ng3 {[%clk 0:02:10.1]} 11...
cxd4 {[%clk 0:01:04.3]} 12. h6 {[%clk 0:02:01.9]} 12... Bf6 {[%clk 0:01:02.5]}
13. Nxf5 {[%clk 0:02:01.5]} 13... gxf5 {[%clk 0:01:02.4]} 14. Qh5 {[%clk
0:02:01.3]} 14... Ne5 {[%clk 0:00:58.6]} 15. Bb5+ {[%clk 0:01:59]} 15... Kf8
{[%clk 0:00:56]} 16. exd4 {[%clk 0:01:49.9]} 16... Qa5 {[%clk 0:00:50.4]} 17.
Qxf5 {[%clk 0:01:37.5]} 17... Qxc3+ {[%clk 0:00:46.6]} 18. Bd2 {[%clk
0:01:32.3]} 18... Qxa1+ {[%clk 0:00:22.2]} 19. Ke2 {[%clk 0:01:30.9]} 1-0

[Event "*** Titled Tuesday Blitz"]
[Site "Chess.com"]
[Date "2020.12.29"]
[Round "1"]
[White "IngOscarArdila"]
[Black "Sueetin"]
[Result "0-1"]
[WhiteElo "2112"]
[BlackElo "2508"]
[TimeControl "180+1"]
[EndTime "10:05:13 PST"]
[Termination "Sueetin won on time"]

1. d4 {[%clk 0:03:00.9]} 1... Nf6 {[%clk 0:02:59.9]} 2. c4 {[%clk 0:02:55.5]}
2... e6 {[%clk 0:03:00.1]} 3. Nc3 {[%clk 0:02:54.9]} 3... Bb4 {[%clk 0:02:59.5]}
4. Bd2 {[%clk 0:02:54.1]} 4... b6 {[%clk 0:02:59.6]} 5. Nf3 {[%clk 0:02:53.1]}
5... Bb7 {[%clk 0:02:58.3]} 6. e3 {[%clk 0:02:52.8]} 6... c5 {[%clk 0:02:54]} 7.
dxc5 {[%clk 0:02:51.4]} 7... Bxc5 {[%clk 0:02:52.5]} 8. Be2 {[%clk 0:02:47.6]}
8... O-O {[%clk 0:02:52.7]} 9. O-O {[%clk 0:02:34.1]} 9... d5 {[%clk 0:02:52.8]}
10. cxd5 {[%clk 0:02:33.2]} 10... Nxd5 {[%clk 0:02:53.7]} 11. Qc2 {[%clk
0:02:28.2]} 11... Nb4 {[%clk 0:02:52.7]} 12. Qb1 {[%clk 0:02:27.6]} 12... Ba6
{[%clk 0:02:49.3]} 13. Bxa6 {[%clk 0:02:12.1]} 13... N8xa6 {[%clk 0:02:49.2]}
14. a3 {[%clk 0:02:11.6]} 14... Nd5 {[%clk 0:02:36.1]} 15. Rd1 {[%clk
0:02:06.7]} 15... Nxc3 {[%clk 0:02:26.6]} 16. Bxc3 {[%clk 0:02:05.1]} 16... Qc8
{[%clk 0:02:15.6]} 17. Qd3 {[%clk 0:01:45.2]} 17... Rd8 {[%clk 0:02:10.4]} 18.
Qb5 {[%clk 0:01:40.1]} 18... Rxd1+ {[%clk 0:02:04.2]} 19. Rxd1 {[%clk
0:01:33.8]} 19... Bf8 {[%clk 0:02:04.1]} 20. Ne5 {[%clk 0:01:29.3]} 20... Nc7
{[%clk 0:01:55.6]} 21. Qc6 {[%clk 0:01:27.7]} 21... Nd5 {[%clk 0:01:53.5]} 22.
Qxa8 {[%clk 0:01:25.3]} 22... Qxa8 {[%clk 0:01:51]} 0-1

[Event "*** Titled Tuesday Blitz"]
[Site "Chess.com"]
[Date "2020.12.29"]
[Round "1"]
[White "Grandelicious"]
[Black "IljaJoke"]
[Result "1-0"]
[WhiteElo "2849"]
[BlackElo "2439"]
[TimeControl "180+1"]
[EndTime "10:05:16 PST"]
[Termination "Grandelicious won by resignation"]

1. Nf3 {[%clk 0:03:00.9]} 1... d5 {[%clk 0:02:58.2]} 2. g3 {[%clk 0:03:00.3]}
2... c6 {[%clk 0:02:57.9]} 3. Bg2 {[%clk 0:03:00.1]} 3... h5 {[%clk 0:02:58]} 4.
c4 {[%clk 0:02:54.5]} 4... dxc4 {[%clk 0:02:44.7]} 5. Qc2 {[%clk 0:02:49.9]}
5... Nd7 {[%clk 0:02:21.2]} 6. Na3 {[%clk 0:02:45.1]} 6... Nb6 {[%clk 0:02:15]}
7. Nxc4 {[%clk 0:02:40.7]} 7... Nxc4 {[%clk 0:02:13.6]} 8. Qxc4 {[%clk
0:02:41.6]} 8... Be6 {[%clk 0:02:14]} 9. Qc2 {[%clk 0:02:39.5]} 9... Nf6 {[%clk
0:02:01.1]} 10. b3 {[%clk 0:02:35.1]} 10... Bd5 {[%clk 0:01:58.6]} 11. Bb2
{[%clk 0:02:25.9]} 11... e6 {[%clk 0:01:55.9]} 12. O-O {[%clk 0:02:19]} 12...
Be7 {[%clk 0:01:46.6]} 13. Rad1 {[%clk 0:02:04]} 13... h4 {[%clk 0:01:07.5]} 14.
Bxf6 {[%clk 0:02:00.1]} 14... hxg3 {[%clk 0:00:30.5]} 15. hxg3 {[%clk
0:01:47.6]} 15... Bxf6 {[%clk 0:00:10.5]} 16. e4 {[%clk 0:01:47.8]} 16... Kd7
{[%clk 0:00:08.9]} 17. exd5 {[%clk 0:01:43.9]} 17... cxd5 {[%clk 0:00:09.8]} 18.
Rc1 {[%clk 0:01:42.6]} 18... Rc8 {[%clk 0:00:09.3]} 19. Qd3 {[%clk 0:01:35.8]}
19... Qb6 {[%clk 0:00:07.7]} 20. Rfe1 {[%clk 0:01:33.6]} 20... Qd6 {[%clk
0:00:06.4]} 21. Qb5+ {[%clk 0:01:33.3]} 1-0

[Event "*** Titled Tuesday Blitz"]
[Site "Chess.com"]
[Date "2020.12.29"]
[Round "1"]
[White "chessmachine14"]
[Black "vladjianu"]
[Result "0-1"]
[WhiteElo "2246"]
[BlackElo "2557"]
[TimeControl "180+1"]
[EndTime "10:05:16 PST"]
[Termination "vladjianu won by resignation"]

1. e4 {[%clk 0:02:58.8]} 1... d6 {[%clk 0:02:59.7]} 2. d4 {[%clk 0:02:58.2]}
2... Nf6 {[%clk 0:02:57.4]} 3. Nc3 {[%clk 0:02:57.5]} 3... g6 {[%clk 0:02:57]}
4. f4 {[%clk 0:02:56.4]} 4... Bg7 {[%clk 0:02:57.5]} 5. Nf3 {[%clk 0:02:56]}
5... O-O {[%clk 0:02:56.8]} 6. Bd3 {[%clk 0:02:55]} 6... Nbd7 {[%clk 0:02:53.4]}
7. O-O {[%clk 0:02:50.6]} 7... e5 {[%clk 0:02:51]} 8. fxe5 {[%clk 0:02:43.2]}
8... dxe5 {[%clk 0:02:51.9]} 9. Bg5 {[%clk 0:02:25.4]} 9... exd4 {[%clk
0:02:27.8]} 10. Nxd4 {[%clk 0:02:03.3]} 10... h6 {[%clk 0:02:22.8]} 11. Bh4
{[%clk 0:02:01.6]} 11... c6 {[%clk 0:02:13.9]} 12. Qd2 {[%clk 0:01:41.3]} 12...
Ne5 {[%clk 0:02:06.7]} 13. Nf3 {[%clk 0:01:29]} 13... Nxf3+ {[%clk 0:01:44]} 14.
Rxf3 {[%clk 0:01:28.6]} 14... Nxe4 {[%clk 0:01:38.8]} 15. Nxe4 {[%clk
0:00:44.6]} 15... Qxh4 {[%clk 0:01:38]} 16. Raf1 {[%clk 0:00:43.6]} 16... Be6
{[%clk 0:01:35.2]} 17. Nf6+ {[%clk 0:00:40.8]} 17... Kh8 {[%clk 0:01:32.4]} 18.
Rh3 {[%clk 0:00:40.4]} 18... Bxh3 {[%clk 0:01:32]} 19. gxh3 {[%clk 0:00:35.7]}
19... Bxf6 {[%clk 0:01:29]} 20. Rf4 {[%clk 0:00:32.1]} 20... Qg5+ {[%clk
0:01:22.6]} 21. Kh1 {[%clk 0:00:31.3]} 21... Be5 {[%clk 0:01:17.8]} 0-1